bitfinex/quotes_BTCUSD_20250403
["timestamp","ask_amount","ask_price","bid_price","bid_amount"]
[1743695984055,0.243709,82065.0,82060.0,0.243723]
[1743695984341,0.243714,82064.0,82059.0,0.243726]
[1743695984543,0.012186,82060.0,82057.0,0.00761921]
[1743695984783,0.243723,82061.0,82057.0,0.00761921]
[1743695985103,0.243733,82057.0,82052.0,0.05250953]
[1743695985318,0.243727,82059.0,82052.0,0.05250953]
[1743695985319,0.012186,82059.0,82052.0,0.00380953]
[1743695985502,0.243732,82058.0,82052.0,0.00380953]
[1743695985703,0.255931,82053.0,82052.0,0.00380953]
[1743695986515,0.00924855,82060.0,82052.0,0.00380953]
[1743695986692,0.00924855,82060.0,82057.0,0.24373]
[1743695986856,0.00924855,82060.0,82056.0,0.24373]
[1743695987061,0.00924855,82060.0,82055.0,0.255919]
[1743695987303,0.25297355,82060.0,82054.0,0.243739]
[1743695987614,0.243744,82054.0,82048.0,0.243759]
[1743695987775,0.012186,82059.0,82051.0,0.243748]
[1743695987955,0.34,82059.0,82052.0,0.012187]
[1743695988157,0.34,82059.0,82058.0,0.24373]
[1743695988388,0.34,82059.0,82058.0,0.255916]
[1743695988597,0.243709,82065.0,82059.0,0.255913]
[1743695988799,0.34,82064.0,82060.0,0.243722]
[1743695989013,0.34,82064.0,82062.0,0.243717]
[1743695989218,0.34,82064.0,82060.0,0.255908]
[1743695989446,0.34,82064.0,82062.0,0.243717]
[1743695989619,0.34,82064.0,82060.0,0.012186]
[1743695989823,0.34,82065.0,82061.0,0.255904]
[1743695990127,0.34,82065.0,82061.0,0.012186]
[1743695990303,0.34,82065.0,82064.0,0.243712]
[1743695990489,0.34,82065.0,82061.0,0.012186]
[1743695990490,0.34,82065.0,82062.0,0.243718]
[1743695990691,0.34,82065.0,82061.0,0.255904]
[1743695990976,0.34,82065.0,82061.0,0.243718]
[1743695991179,0.243734,82057.0,82050.0,0.012187]
[1743695991595,0.255918,82058.0,82053.0,0.243744]
[1743695991942,0.255913,82059.0,82056.0,0.00380945]
[1743695992142,0.243727,82059.0,82056.0,0.00380945]
[1743695992610,0.243731,82058.0,82056.0,0.00380945]
[1743695992862,0.243731,82058.0,82054.0,0.25136047]
[1743695993178,0.012186,82059.0,82054.0,0.00761947]
[1743695993179,0.255918,82059.0,82054.0,0.00761947]
[1743695993410,0.243733,82057.0,82054.0,0.00761947]
[1743695993925,0.243737,82056.0,82054.0,0.00761947]
[1743695994388,0.243733,82057.0,82054.0,0.00761947]
[1743695994565,0.243733,82057.0,82052.0,0.243745]
[1743695994566,0.243735,82057.0,82052.0,0.243746]
[1743695994765,0.255921,82058.0,82050.0,0.012187]
[1743695994974,0.243744,82055.0,82050.0,0.243753]
[1743695995186,0.243736,82056.0,82052.0,0.243747]
[1743695995384,0.243742,82054.0,82049.0,0.243756]
[1743695995742,0.012187,82053.0,82046.0,0.012188]
[1743695995895,0.255934,82053.0,82050.0,0.00761965]
[1743695996081,0.255929,82054.0,82050.0,0.00761965]
[1743695996279,0.012187,82053.0,82050.0,0.00761965]
[1743695996500,0.243748,82052.0,82050.0,0.00761965]
[1743695996705,0.24375,82051.0,82050.0,0.00761965]
[1743695997310,0.243748,82052.0,82041.0,0.01218947]
[1743695997311,0.012187,82048.0,82041.0,0.01218947]
[1743695997514,0.255965,82042.0,82041.0,0.01218947]
[1743695997809,0.37886797,82042.0,82041.0,0.01218947]
[1743695998012,0.243767,82046.0,82042.0,0.243777]
[1743695998013,0.34,82045.0,82042.0,0.243777]
[1743695998218,0.58377,82045.0,82039.0,0.243785]
[1743695998440,0.352188,82045.0,82037.0,0.243789]
[1743695998676,0.243776,82043.0,82038.0,0.243787]
[1743695999000,0.243777,82042.0,82037.0,0.243792]
[1743695999336,0.243776,82043.0,82039.0,0.243784]
[1743695999554,0.012188,82044.0,82039.0,0.243784]
[1743695999555,0.243772,82044.0,82040.0,0.243781]
[1743696000935,0.012187,82048.0,82037.0,0.012189]
[1743696001171,0.34,82056.0,82024.0,0.00243803]
[1743696001378,0.12290297,82055.0,82041.0,0.00762047]
[1743696001796,0.12290297,82055.0,82042.0,0.0476]
[1743696002021,0.243743,82054.0,82047.0,0.012188]
[1743696002171,0.012186,82056.0,82048.0,0.243754]
[1743696002172,0.12290297,82053.0,82048.0,0.243754]
[1743696002407,0.25594,82052.0,82043.0,0.243773]
[1743696002610,0.12290297,82052.0,82050.0,0.243752]
[1743696002770,0.12290297,82052.0,82045.0,0.255955]
[1743696002970,0.12290297,82052.0,82046.0,0.012188]
[1743696003173,0.12290297,82052.0,82047.0,0.012188]
[1743696003368,0.36665097,82052.0,82046.0,0.012188]
[1743696003589,0.12290297,82052.0,82047.0,0.012188]
[1743696003789,0.12290297,82052.0,82048.0,0.012187]
[1743696004025,0.12290297,82052.0,82049.0,0.243756]
[1743696004903,0.36665097,82052.0,82047.0,0.00762047]
[1743696005118,0.012186,82061.0,82052.0,0.255934]
[1743696005337,0.012186,82057.0,82047.0,0.01980847]
[1743696005538,0.012186,82058.0,82051.0,0.243748]
[1743696005739,0.012187,82054.0,82040.0,0.012189]
[1743696005900,0.012189,82039.0,82033.0,0.05949276]
[1743696006117,0.255991,82034.0,82033.0,0.01219276]
[1743696007396,0.255994,82033.0,82032.0,4e-05]
[1743696008526,0.37889697,82033.0,82032.0,4e-05]
[1743696008738,0.57587697,82033.0,82032.0,4e-05]
[1743696008881,0.0214332,82036.0,82032.0,0.256034]
[1743696008882,0.0092442,82036.0,82032.0,0.256034]
[1743696009086,0.0895,82033.0,82032.0,4e-05]
[1743696010075,0.0895,82033.0,82029.0,0.256005]
[1743696010523,0.0895,82033.0,82032.0,0.01219]
[1743696011320,0.0895,82033.0,82032.0,0.13509297]
[1743696011948,0.0895,82033.0,82032.0,0.13753092]
[1743696012148,0.0895,82033.0,82032.0,0.13509297]
[1743696012356,0.0895,82033.0,82032.0,0.18329297]
[1743696012896,0.0895,82033.0,82032.0,0.19472583]
[1743696014014,0.0895,82033.0,82032.0,0.07182286]
[1743696014215,0.0895,82033.0,82032.0,0.06801192]
[1743696014824,0.0895,82033.0,82032.0,0.31181892]
[1743696015833,0.0895,82033.0,82032.0,0.255997]
[1743696017151,0.0895,82033.0,82032.0,0.256037]
[1743696017371,0.0895,82033.0,82032.0,0.37893997]
[1743696018485,0.0895,82033.0,82032.0,0.36037283]
[1743696018703,0.0895,82033.0,82032.0,0.24965986]
[1743696018926,0.0895,82033.0,82032.0,0.01147286]
[1743696019243,0.0961875,82033.0,82032.0,0.26746986]
[1743696019646,0.0895,82033.0,82032.0,0.38275091]
[1743696019771,0.0895,82033.0,82032.0,0.42603997]
[1743696020189,0.243682,82074.0,82070.0,0.243693]
[1743696020389,0.0987,82076.0,82063.0,0.012185]
[1743696020390,0.243693,82071.0,82066.0,0.243705]
[1743696020724,0.34,82070.0,82066.0,0.243703]
[1743696020931,0.0066875,82069.0,82066.0,0.243703]
[1743696021104,0.2503875,82069.0,82064.0,0.255896]
[1743696021346,0.583701,82068.0,82064.0,0.243711]
[1743696021766,0.0066875,82067.0,82066.0,0.243704]
[1743696021967,0.255857,82077.0,82070.0,0.243692]
[1743696022171,0.243679,82075.0,82070.0,0.243692]
[1743696022551,0.583682,82074.0,82070.0,0.243692]
[1743696022734,0.59045782,82074.0,82070.0,0.243692]
[1743696022907,0.34,82070.0,82066.0,0.243704]
[1743696023103,0.34,82070.0,82066.0,0.255889]
[1743696023337,0.00677482,82069.0,82067.0,0.243703]
[1743696023536,0.00677482,82069.0,82066.0,0.255889]
[1743696023743,0.00677482,82069.0,82067.0,0.243702]
[1743696024278,0.00677482,82069.0,82066.0,0.012185]
[1743696024279,0.00677482,82069.0,82066.0,0.243706]
[1743696024483,0.34,82069.0,82061.0,0.012186]
[1743696024655,0.00677482,82068.0,82064.0,0.243711]
[1743696024868,0.00677482,82068.0,82067.0,0.243703]
[1743696025068,0.00677482,82068.0,82067.0,0.255888]
[1743696025443,0.34,82079.0,82072.0,0.243688]
[1743696025444,0.583673,82077.0,82072.0,0.243688]
[1743696025613,0.34,82075.0,82072.0,0.243688]
[1743696025812,0.583679,82075.0,82069.0,0.243696]
[1743696026015,0.012185,82068.0,82058.0,0.012186]
[1743696026431,0.012185,82068.0,82060.0,0.255908]
[1743696026603,0.012185,82068.0,82058.0,0.255915]
[1743696026604,0.243709,82065.0,82058.0,0.012186]
[1743696026815,0.243727,82059.0,82057.0,0.00762192]
[1743696027017,0.24373,82058.0,82057.0,0.00762192]
[1743696027166,0.25050482,82058.0,82057.0,0.00762192]
[1743696027367,0.243734,82057.0,82053.0,0.243744]
[1743696027567,0.243733,82057.0,82053.0,0.243744]
[1743696027752,0.00677482,82056.0,82052.0,0.255934]
[1743696027950,0.00677482,82056.0,82055.0,0.255924]
[1743696028162,0.243718,82062.0,82056.0,0.012186]
[1743696028356,0.34,82063.0,82060.0,0.243724]
[1743696028357,0.00677482,82061.0,82060.0,0.243724]
[1743696028559,0.34,82063.0,82058.0,0.255915]
[1743696028785,0.25049282,82062.0,82058.0,0.243729]
[1743696029192,0.25049282,82062.0,82059.0,0.243726]
[1743696029416,0.00677482,82062.0,82059.0,0.243725]
[1743696029615,0.25049282,82062.0,82058.0,0.255915]
[1743696029819,0.00677482,82062.0,82061.0,0.243721]
[1743696029993,0.00677482,82062.0,82061.0,0.255907]
[1743696030211,0.34,82065.0,82064.0,0.243712]
[1743696030393,0.34,82065.0,82063.0,0.243714]
[1743696030597,0.34,82065.0,82064.0,0.243712]
[1743696030930,0.34,82068.0,82066.0,0.243705]
[1743696031071,0.2437,82068.0,82065.0,0.243709]
[1743696031270,0.012184,82070.0,82065.0,0.243709]
[1743696031577,0.34,82071.0,82068.0,0.2437]
[1743696031781,0.15099561,82071.0,82068.0,0.2437]
[1743696031976,0.01246637,82080.0,82073.0,0.012184]
[1743696032176,0.012183,82079.0,82073.0,0.255863]
[1743696032420,0.243676,82077.0,82073.0,0.255863]
[1743696032601,0.243677,82076.0,82072.0,0.243688]
[1743696033044,0.243676,82076.0,82072.0,0.243688]
[1743696033243,0.012183,82079.0,82073.0,0.255868]
[1743696033439,0.01216103,82080.0,82076.0,0.243673]
[1743696033599,0.02434403,82080.0,82073.0,0.255868]
[1743696033801,0.243672,82078.0,82073.0,0.012184]
[1743696033979,0.012182,82085.0,82056.0,0.05512192]
[1743696033980,0.012181,82094.0,82081.0,0.012183]
[1743696034186,0.00100069,82100.0,82096.0,0.01218]
[1743696034387,0.00100069,82100.0,82095.0,0.012181]
[1743696034646,0.00100069,82100.0,82097.0,0.255791]
[1743696034816,0.00100069,82100.0,82097.0,0.243611]
[1743696035141,0.00100069,82100.0,82099.0,0.255788]
[1743696035822,0.00100069,82100.0,82099.0,0.37869097]
[1743696036039,0.00100069,82100.0,82099.0,0.42709097]
[1743696036244,0.00100069,82100.0,82099.0,0.76709097]
[1743696036495,0.00100069,82100.0,82099.0,0.91509097]
[1743696037396,0.00100069,82100.0,82099.0,0.57509097]
[1743696041828,0.00100069,82100.0,82099.0,0.91509097]
[1743696042384,0.00100069,82100.0,82099.0,0.92271289]
[1743696043194,0.08340837,82137.0,82099.0,0.92271289]
[1743696043403,0.08340837,82137.0,82124.0,0.243533]
[1743696043577,0.00701239,82136.0,82124.0,0.243533]
[1743696043782,0.00701239,82136.0,82130.0,0.012175]
[1743696044031,0.012174,82142.0,82132.0,0.012175]
[1743696044223,0.34,82143.0,82137.0,0.243494]
[1743696044461,0.0468,82147.0,82137.0,0.255668]
[1743696044675,0.01231687,82145.0,82138.0,0.012174]
[1743696046443,0.243464,82148.0,82138.0,0.012174]
[1743696046654,0.059371,82160.0,82138.0,0.012174]
[1743696046800,0.012172,82153.0,82138.0,0.012174]
[1743696047019,0.260923,82155.0,82138.0,0.012174]
[1743696047341,0.01748,82155.0,82138.0,0.059014]
[1743696047816,0.01748,82155.0,82138.0,0.18191697]
[1743696048017,0.01748,82155.0,82138.0,0.18435166]
[1743696049227,0.01748,82155.0,82138.0,0.18191697]
[1743696049878,0.01748,82155.0,82138.0,0.42540897]
[1743696053746,0.01748,82155.0,82138.0,0.255706]
[1743696053902,0.01748,82155.0,82138.0,0.405186]
[1743696054982,0.01748,82155.0,82138.0,0.405026]
[1743696056221,0.01748,82155.0,82138.0,0.52792897]
[1743696057204,0.01748,82155.0,82138.0,0.405026]
[1743696057406,0.243475,82144.0,82138.0,4e-05]
[1743696057612,0.012173,82146.0,82138.0,4e-05]
[1743696057613,0.24347,82146.0,82138.0,4e-05]
[1743696057986,0.0492,82151.0,82138.0,0.255706]
[1743696058163,0.34,82149.0,82138.0,0.255706]
[1743696058333,0.34,82147.0,82138.0,0.255706]
[1743696058887,0.583466,82147.0,82138.0,0.255706]
[1743696059090,0.587489,82139.0,82138.0,4e-05]
[1743696059331,0.587489,82139.0,82101.0,1.052]
[1743696059332,0.243585,82107.0,82101.0,0.01218]
[1743696059537,0.012178,82110.0,82097.0,0.01218]
[1743696059712,0.012178,82110.0,82089.0,0.0484]
[1743696059713,0.243596,82103.0,82092.0,0.012181]
[1743696059939,0.00735828,82109.0,82105.0,0.012179]
[1743696060215,0.06413209,82169.0,82116.0,0.255734]
[1743696060216,0.34,82117.0,82116.0,0.255734]
[1743696061009,0.012177,82118.0,82108.0,0.012179]
[1743696061208,0.34,82124.0,82108.0,0.012179]
[1743696061209,0.012177,82119.0,82109.0,0.255756]
[1743696061410,0.07300487,82139.0,82138.0,8.32158]
[1743696061660,0.14804099,82139.0,82138.0,8.32158]
[1743696061880,0.39153599,82139.0,82138.0,8.32158]
[1743696062285,0.26863302,82139.0,82138.0,8.32158]
[1743696062651,0.247489,82139.0,82138.0,8.32158]
[1743696062965,0.26876856,82139.0,82138.0,8.32158]
[1743696063346,0.44366039,82139.0,82138.0,8.32158]
[1743696063524,0.74621238,82139.0,82138.0,8.32158]
[1743696064810,0.73167153,82139.0,82138.0,8.32158]
[1743696065089,0.599663,82139.0,82138.0,8.32158]
[1743696065292,0.344,82139.0,82138.0,8.32158]
[1743696065500,0.004,82139.0,82138.0,8.32158]
[1743696065692,0.004,82139.0,82138.0,8.577246]
[1743696067113,0.004,82139.0,82138.0,8.58485709]
[1743696067285,0.004,82139.0,82138.0,8.70776006]
[1743696067723,0.34,82161.0,82152.0,0.24345]
[1743696067909,0.263419,82163.0,82153.0,0.243445]
[1743696068105,0.00726414,82160.0,82153.0,0.243446]
[1743696068345,0.02,82163.0,82153.0,0.255619]
[1743696068550,0.00726414,82159.0,82153.0,0.255619]
[1743696068725,0.34,82161.0,82154.0,0.243444]
[1743696068929,0.37217,82163.0,82154.0,0.243444]
[1743696068930,0.00726414,82158.0,82157.0,0.243436]
[1743696069131,0.02,82163.0,82159.0,0.012171]
[1743696069332,0.02,82163.0,82162.0,0.243421]
[1743696069540,0.02,82163.0,82162.0,0.255592]
[1743696070329,0.02,82163.0,82159.0,0.012171]
[1743696070531,0.02,82163.0,82162.0,0.00760931]
[1743696071334,0.615588,82163.0,82162.0,0.00760931]
[1743696071675,0.36,82163.0,82161.0,0.243423]
[1743696071895,0.36,82163.0,82160.0,0.255594]
[1743696072373,0.36,82163.0,82161.0,0.243423]
[1743696072576,0.36,82163.0,82162.0,0.255592]
[1743696072884,0.02726414,82163.0,82162.0,0.255632]
[1743696073219,0.02,82163.0,82162.0,4e-05]
[1743696073420,0.02,82163.0,82162.0,0.243461]
[1743696073672,0.02,82163.0,82162.0,4e-05]
[1743696074071,0.02726414,82163.0,82162.0,4e-05]
[1743696074270,0.36726414,82163.0,82162.0,4e-05]
[1743696074501,0.36726414,82163.0,82162.0,0.00764953]
[1743696074677,0.62285214,82163.0,82162.0,0.00764953]
[1743696075057,0.36726414,82163.0,82162.0,0.00764953]
[1743696075285,0.36726414,82163.0,82162.0,4e-05]
[1743696076157,0.62285214,82163.0,82162.0,4e-05]
[1743696077493,0.36726414,82163.0,82162.0,4e-05]
[1743696078947,0.36726414,82163.0,82162.0,0.255632]
[1743696079153,0.02,82163.0,82162.0,0.304832]
[1743696079754,0.02,82163.0,82162.0,0.292661]
[1743696079954,0.02,82163.0,82162.0,0.304832]
[1743696080654,0.02,82163.0,82162.0,4e-05]
[1743696080850,0.02,82163.0,82162.0,0.00764953]
[1743696081070,0.275588,82163.0,82162.0,0.00764953]
[1743696081247,0.62272381,82163.0,82162.0,0.00764953]
[1743696081481,0.86398546,82163.0,82162.0,0.00764953]
[1743696081683,0.86398546,82163.0,82142.0,0.00380477]
[1743696081684,0.25565,82143.0,82142.0,0.00380477]
[1743696081888,0.59565,82143.0,82142.0,0.00380477]
[1743696082297,0.34,82143.0,82142.0,0.25945877]
[1743696082501,0.34,82143.0,82142.0,0.24728477]
[1743696082712,0.012171,82160.0,82148.0,0.243462]
[1743696082917,0.34,82156.0,82149.0,0.243459]
[1743696083123,0.34,82156.0,82150.0,0.012172]
[1743696083328,0.34,82156.0,82151.0,0.243453]
[1743696083532,0.00715288,82155.0,82154.0,0.243445]
[1743696083936,0.34,82160.0,82152.0,0.243449]
[1743696084139,0.34,82160.0,82153.0,0.243447]
[1743696084339,0.00715288,82159.0,82154.0,0.012172]
[1743696084469,0.00715288,82159.0,82157.0,0.243435]
[1743696084671,0.02,82163.0,82162.0,0.255592]
[1743696085801,0.02715288,82163.0,82162.0,0.243421]
[1743696086003,0.02715288,82163.0,82162.0,0.255592]
[1743696087312,0.02,82163.0,82162.0,0.255592]
[1743696088098,0.02715288,82163.0,82162.0,0.255592]
[1743696088296,0.02,82163.0,82162.0,0.255592]
[1743696089847,1e-06,82163.0,82162.0,0.42489497]
[1743696089998,1e-06,82163.0,82162.0,0.63585519]
[1743696090408,1e-06,82163.0,82162.0,0.65039604]
[1743696091017,1e-06,82163.0,82162.0,0.50139604]
[1743696091214,1e-06,82163.0,82162.0,0.65031604]
[1743696092573,1e-06,82163.0,82162.0,0.31818297]
[1743696092782,1e-06,82163.0,82162.0,4e-05]
[1743696092957,0.00746657,82163.0,82162.0,4e-05]
[1743696094319,0.00746657,82163.0,82162.0,0.00348]
[1743696095095,0.00746657,82163.0,82162.0,0.259072]
[1743696095304,1e-06,82163.0,82162.0,0.259072]
[1743696095865,1e-06,82163.0,82162.0,0.407872]
[1743696097741,1e-06,82163.0,82162.0,0.00348]
[1743696098390,1e-06,82163.0,82162.0,0.246901]
[1743696098593,0.00746657,82163.0,82162.0,0.246901]
[1743696098746,1e-06,82163.0,82162.0,0.246901]
[1743696098951,0.00746657,82163.0,82162.0,0.246901]
[1743696099314,0.00746657,82163.0,82162.0,0.00348]
[1743696099494,0.00746657,82163.0,82162.0,0.259072]
[1743696099732,1e-06,82163.0,82162.0,0.259072]
[1743696100443,1e-06,82163.0,82162.0,0.43017497]
[1743696101810,1e-06,82163.0,82162.0,0.43778244]
[1743696103438,1e-06,82163.0,82162.0,0.58630244]
[1743696103644,1e-06,82163.0,82162.0,0.25450847]
[1743696103815,1e-06,82163.0,82162.0,0.41523947]
[1743696104229,1e-06,82163.0,82162.0,0.407632]
[1743696104633,1e-06,82163.0,82162.0,0.259072]
[1743696104847,1e-06,82163.0,82162.0,0.53045497]
[1743696106251,1e-06,82163.0,82162.0,0.59329582]
[1743696107677,1e-06,82163.0,82162.0,0.60090329]
[1743696107878,1e-06,82163.0,82162.0,0.58636244]
[1743696109750,1e-06,82163.0,82162.0,0.60090329]
[1743696111398,1e-06,82163.0,82162.0,0.43788244]
[1743696111726,1e-06,82163.0,82162.0,0.26667947]
[1743696111899,1e-06,82163.0,82162.0,0.17145847]
[1743696112105,1e-06,82163.0,82162.0,0.407272]
[1743696112510,1e-06,82163.0,82162.0,0.53017497]
[1743696112738,1e-06,82163.0,82162.0,0.63971582]
[1743696113412,1e-06,82163.0,82162.0,0.64788329]
[1743696115282,1e-06,82163.0,82162.0,0.49912329]
[1743696115417,1e-06,82163.0,82162.0,0.64760329]
[1743696118789,1e-06,82163.0,82162.0,0.64720329]
[1743696119868,1e-06,82163.0,82162.0,0.58636244]
[1743696120254,1e-06,82163.0,82162.0,0.53766244]
[1743696121045,1e-06,82163.0,82162.0,0.55220329]
[1743696121220,1e-06,82169.0,82168.0,0.255573]
[1743696121420,1e-06,82169.0,82168.0,0.37847597]
[1743696122326,1e-06,82169.0,82168.0,0.38608344]
[1743696123702,1e-06,82169.0,82168.0,0.53416344]
[1743696125533,1e-06,82169.0,82168.0,0.38608344]
[1743696125738,1e-06,82169.0,82168.0,0.41122047]
[1743696125994,1e-06,82169.0,82168.0,0.53412344]
[1743696128388,1e-06,82169.0,82168.0,0.58262344]
[1743696129821,1e-06,82169.0,82168.0,0.59479459]
[1743696131122,1e-06,82169.0,82168.0,0.59467459]
[1743696131777,1e-06,82169.0,82168.0,0.60921544]
[1743696131977,1e-06,82169.0,82168.0,1.00161544]
[1743696132153,0.004,82199.0,82198.0,0.255479]
[1743696132389,0.004,82199.0,82198.0,0.403399]
[1743696132732,0.004,82199.0,82198.0,0.41100647]
[1743696133804,0.004,82199.0,82198.0,0.41088647]
[1743696134968,0.004,82199.0,82198.0,0.54606789]
[1743696135397,1e-06,82199.0,82198.0,0.54606789]
[1743696135595,1e-06,82199.0,82198.0,0.61697364]
[1743696136436,1e-06,82199.0,82198.0,0.59326789]
[1743696136631,1e-06,82199.0,82198.0,0.55823904]
[1743696137698,1e-06,82199.0,82198.0,0.43533607]
[1743696137905,1e-06,82199.0,82198.0,0.42316492]
[1743696138107,1e-06,82199.0,82198.0,0.15540747]
[1743696138439,0.00581614,82199.0,82198.0,0.00760747]
[1743696138644,0.35798114,82199.0,82198.0,0.00760747]
[1743696138889,0.41750348,82199.0,82198.0,0.00760747]
[1743696139190,0.41750348,82199.0,82187.0,0.00760747]
[1743696139191,0.243335,82191.0,82187.0,0.00760747]
[1743696139342,0.243342,82189.0,82187.0,0.00760747]
[1743696139729,0.00581514,82188.0,82187.0,0.00760747]
[1743696140362,0.00581514,82188.0,82186.0,0.24335]
[1743696140711,0.243345,82188.0,82182.0,0.255528]
[1743696140978,0.243345,82188.0,82161.0,0.00896502]
[1743696140979,0.243364,82182.0,82172.0,0.14812]
[1743696141197,0.243364,82182.0,82167.0,0.12000978]
[1743696141198,0.352168,82181.0,82167.0,0.1116425]
[1743696141410,0.56747097,82181.0,82167.0,0.1116425]
[1743696141608,0.56747097,82181.0,82169.0,0.01217]
[1743696141609,0.243381,82176.0,82169.0,0.01217]
[1743696141780,0.01217,82169.0,82168.0,0.00760747]
[1743696141981,0.34,82170.0,82168.0,0.00760747]
[1743696142188,0.00581514,82169.0,82168.0,0.01977747]
[1743696142393,0.00581514,82169.0,82168.0,0.29076044]
[1743696142601,0.0492,82198.0,82194.0,0.012166]
[1743696142813,0.0492,82198.0,82171.0,0.486786]
[1743696142814,0.243322,82196.0,82190.0,0.243336]
[1743696142977,0.0492,82198.0,82193.0,0.012166]
[1743696142978,0.00574702,82197.0,82193.0,0.012166]
[1743696143174,1e-06,82199.0,82198.0,0.012165]
[1743696144336,0.00479018,82199.0,82198.0,0.012165]
[1743696144632,1e-06,82199.0,82198.0,0.012165]
[1743696145602,1e-06,82199.0,82198.0,0.13750095]
[1743696145806,1e-06,82199.0,82198.0,0.13506797]
[1743696145999,0.012161,82225.0,82198.0,0.13506797]
[1743696146000,0.00933662,82227.0,82201.0,0.255471]
[1743696146266,0.012164,82208.0,82200.0,0.255471]
[1743696146587,0.012164,82204.0,82197.0,0.148]
[1743696146828,0.243312,82199.0,82197.0,0.148]
[1743696147029,0.012165,82198.0,82197.0,0.148]
[1743696147229,0.00478918,82198.0,82197.0,0.148]
[1743696147474,0.24331,82200.0,82197.0,0.148]
[1743696147675,0.00478918,82199.0,82197.0,0.148]
[1743696148268,0.00478918,82199.0,82198.0,0.012165]
[1743696148455,0.34,82210.0,82208.0,0.243282]
[1743696148607,0.06190113,82221.0,82220.0,0.012162]
[1743696148808,0.016161,82229.0,82220.0,0.255411]
[1743696149018,0.243227,82228.0,82221.0,0.243244]
[1743696149416,0.38228697,82229.0,82222.0,0.243243]
[1743696149642,0.38228697,82229.0,82228.0,0.255387]
[1743696149643,0.004,82229.0,82228.0,0.255387]
[1743696149851,0.004,82229.0,82228.0,0.243226]
[1743696150050,0.004,82229.0,82227.0,0.243227]
[1743696150259,0.004,82229.0,82227.0,0.255388]
[1743696150700,0.004,82229.0,82228.0,0.012161]
[1743696151434,0.004,82229.0,82228.0,0.160641]
[1743696151639,0.255325,82248.0,82240.0,0.012159]
[1743696151845,0.012158,82248.0,82238.0,0.012159]
[1743696152074,0.243176,82245.0,82239.0,0.243192]
[1743696152288,0.012158,82245.0,82238.0,0.243195]
[1743696152496,0.243175,82246.0,82239.0,0.243193]
[1743696152672,0.243178,82244.0,82237.0,0.243197]
[1743696153038,0.255333,82246.0,82237.0,0.243197]
[1743696153039,0.243178,82245.0,82237.0,0.243198]
[1743696153168,0.243178,82245.0,82238.0,0.243195]
[1743696153506,0.255339,82244.0,82234.0,0.255367]
[1743696153724,0.01216,82236.0,82228.0,0.14848]
[1743696153944,0.01216,82231.0,82222.0,0.012162]
[1743696154079,0.01216,82235.0,82229.0,0.243222]
[1743696154416,0.12290297,82236.0,82233.0,0.24321]
[1743696154625,0.34,82241.0,82232.0,0.243214]
[1743696154860,0.012159,82240.0,82231.0,0.01216]
[1743696155087,0.34,82238.0,82231.0,0.243216]
[1743696155266,0.243201,82237.0,82231.0,0.255376]
[1743696155469,0.34,82238.0,82233.0,0.24321]
[1743696155640,0.34,82238.0,82233.0,0.01216]
[1743696155818,0.34,82238.0,82234.0,0.255368]
[1743696156006,0.255347,82241.0,82234.0,0.255368]
[1743696156207,0.34,82238.0,82232.0,0.01216]
[1743696156462,0.583197,82238.0,82232.0,0.255371]
[1743696156702,0.34,82238.0,82233.0,0.25537]
[1743696156940,0.34,82238.0,82237.0,0.255358]
[1743696157372,0.012158,82244.0,82238.0,0.243194]
[1743696157541,0.012159,82241.0,82234.0,0.255367]
[1743696157751,0.34,82239.0,82234.0,0.255367]
[1743696157949,0.583194,82239.0,82233.0,0.25537]
[1743696158153,0.243198,82238.0,82231.0,0.255374]
[1743696158358,0.583194,82239.0,82235.0,0.243205]
[1743696158571,0.34,82239.0,82235.0,0.243205]
[1743696158770,0.243189,82241.0,82235.0,0.243205]
[1743696158950,0.243189,82241.0,82236.0,0.243202]
[1743696159149,0.243189,82241.0,82235.0,0.243205]
[1743696159150,0.34,82239.0,82235.0,0.243205]
[1743696159511,0.243205,82235.0,82227.0,0.255389]
[1743696159691,0.01216,82235.0,82229.0,0.243222]
[1743696159991,0.583196,82238.0,82230.0,0.243218]
[1743696160191,0.34,82238.0,82234.0,0.255367]
[1743696160532,0.34,82238.0,82237.0,0.243199]
[1743696160956,0.34,82240.0,82236.0,0.243201]
[1743696161161,0.00471661,82238.0,82232.0,0.255372]
[1743696161359,0.243202,82236.0,82231.0,0.243216]
[1743696161557,0.34511972,82237.0,82231.0,0.255376]
[1743696161763,0.34,82237.0,82232.0,0.243214]
[1743696161963,0.00511972,82236.0,82231.0,0.243214]
[1743696162165,0.00511972,82236.0,82233.0,0.243211]
[1743696162392,0.00511972,82236.0,82232.0,0.243213]
[1743696162590,0.01216,82231.0,82220.0,0.012162]
[1743696162796,0.01216,82231.0,82226.0,0.24323]
[1743696163127,0.012161,82224.0,82211.0,0.012163]
[1743696163291,0.012161,82224.0,82218.0,0.243254]
[1743696163485,0.243238,82224.0,82219.0,0.243252]
[1743696163690,0.012161,82227.0,82215.0,0.243262]
[1743696163691,0.243247,82221.0,82215.0,0.243262]
[1743696163914,0.243247,82221.0,82214.0,0.159763]
[1743696164254,0.00511972,82220.0,82216.0,0.012163]
[1743696164491,0.00511972,82220.0,82215.0,0.243264]
[1743696164717,0.00511972,82219.0,82211.0,0.243275]
[1743696164945,0.00511972,82219.0,82214.0,0.243264]
[1743696165162,0.24325,82220.0,82215.0,0.012163]
[1743696165381,0.24325,82220.0,82208.0,0.1476]
[1743696165382,0.25543,82214.0,82205.0,0.012164]
[1743696165601,0.012163,82213.0,82203.0,0.243299]
[1743696165802,0.00511972,82213.0,82208.0,0.243284]
[1743696165982,0.00511972,82213.0,82212.0,0.255436]
[1743696166413,0.34,82218.0,82215.0,0.243262]